[Event "Mistrovství Čech mládeže 2023 - HD16"]
[Site "Harrachov, Czech Republic"]
[Date "2023.10.22"]
[Round "2.4"]
[White "Veverka, Vladimír"]
[Black "Langmaier, Michal"]
[Result "1-0"]
[TimeControl "90m + 30s"]
[WhiteElo "1849"]
[BlackElo "1697"]

1. d4 {[%clk 01:30:46]} {[%emt 00:00:14]} Nf6 {[%clk 01:30:51]} {[%emt
00:00:09]} 2. c4 {[%clk 01:31:10]} {[%emt 00:00:07]} c5 {[%clk 01:31:16]}
{[%emt 00:00:04]} 3. d5 {[%clk 01:31:35]} {[%emt 00:00:05]} b5 {[%clk
01:31:43]} {[%emt 00:00:03]} 4. cxb5 {[%clk 01:32:00]} {[%emt 00:00:04]} a6
{[%clk 01:32:09]} {[%emt 00:00:04]} 5. bxa6 {[%clk 01:32:26]} {[%emt 00:00:05]}
Bxa6 {[%clk 01:32:34]} {[%emt 00:00:05]} 6. Nc3 {[%clk 01:32:51]} {[%emt
00:00:05]} d6 {[%clk 01:32:32]} {[%emt 00:00:32]} 7. e4 {[%clk 01:33:08]}
{[%emt 00:00:13]} Bxf1 {[%clk 01:32:25]} {[%emt 00:00:37]} 8. Kxf1 {[%clk
01:33:36]} {[%emt 00:00:02]} g6 {[%clk 01:32:15]} {[%emt 00:00:40]} 9. g3
{[%clk 01:33:25]} {[%emt 00:00:42]} Bg7 {[%clk 01:32:19]} {[%emt 00:00:26]} 10.
Nf3 {[%clk 01:32:26]} {[%emt 00:01:29]} O-O {[%clk 01:31:20]} {[%emt 00:01:29]}
11. Qc2 {[%clk 01:29:46]} {[%emt 00:03:10]} Nbd7 {[%clk 01:30:04]} {[%emt
00:01:46]} 12. Rb1 {[%clk 01:26:06]} {[%emt 00:04:10]} Ra6 {[%clk 01:25:30]}
{[%emt 00:05:03]} 13. b3 {[%clk 01:22:33]} {[%emt 00:04:04]} Qa8 {[%clk
01:22:30]} {[%emt 00:03:29]} 14. a4 {[%clk 01:19:27]} {[%emt 00:03:36]} Rb8
{[%clk 01:16:46]} {[%emt 00:06:14]} 15. Nb5 {[%clk 01:19:00]} {[%emt 00:00:58]}
Ne8 {[%clk 01:13:47]} {[%emt 00:03:28]} 16. Kg2 {[%clk 01:16:31]} {[%emt
00:02:59]} Rb7 {[%clk 01:07:54]} {[%emt 00:06:23]} 17. Nd2 {[%clk 01:09:21]}
{[%emt 00:07:40]} Nc7 {[%clk 01:04:05]} {[%emt 00:04:19]} 18. Nxc7 {[%clk
01:09:38]} {[%emt 00:00:13]} Rxc7 {[%clk 01:04:31]} {[%emt 00:00:04]} 19. Nc4
{[%clk 01:09:31]} {[%emt 00:00:37]} Ne5 {[%clk 01:02:08]} {[%emt 00:02:53]} 20.
f4 {[%clk 01:05:51]} {[%emt 00:04:09]} Nxc4 {[%clk 01:00:17]} {[%emt 00:02:22]}
21. Qxc4 {[%clk 01:05:32]} {[%emt 00:00:49]} Rb7 {[%clk 00:59:27]} {[%emt
00:01:19]} 22. Bd2 {[%clk 01:05:41]} {[%emt 00:00:22]} Rab6 {[%clk 00:55:26]}
{[%emt 00:04:32]} 23. Rhf1 {[%clk 01:02:00]} {[%emt 00:04:10]} Bd4 {[%clk
00:41:39]} {[%emt 00:14:16]} 24. Rf3 {[%clk 01:00:26]} {[%emt 00:02:05]} Qa6
{[%clk 00:36:24]} {[%emt 00:05:45]} 25. Qxa6 {[%clk 00:59:16]} {[%emt
00:01:40]} Rxa6 {[%clk 00:36:01]} {[%emt 00:00:53]} 26. a5 {[%clk 00:59:13]}
{[%emt 00:00:32]} c4 {[%clk 00:35:08]} {[%emt 00:01:24]} 27. g4 {[%clk
00:54:17]} {[%emt 00:05:27]} Ra8 {[%clk 00:25:18]} {[%emt 00:10:19]} 28. Kf1
{[%clk 00:53:37]} {[%emt 00:01:09]} Rab8 {[%clk 00:15:55]} {[%emt 00:09:54]} 29.
b4 {[%clk 00:49:54]} {[%emt 00:04:14]} Rc7 {[%clk 00:11:40]} {[%emt 00:04:44]}
30. Bc3 {[%clk 00:47:23]} {[%emt 00:03:01]} Bxc3 {[%clk 00:11:07]} {[%emt
00:01:04]} 31. Rxc3 {[%clk 00:47:42]} {[%emt 00:00:11]} Ra7 {[%clk 00:07:20]}
{[%emt 00:04:16]} 32. Rxc4 {[%clk 00:44:53]} {[%emt 00:03:20]} Rxa5 {[%clk
00:07:41]} {[%emt 00:00:09]} 33. Rc8+ {[%clk 00:45:06]} {[%emt 00:00:17]} Rxc8
{[%clk 00:08:06]} {[%emt 00:00:05]} 34. bxa5 {[%clk 00:45:31]} {[%emt
00:00:04]} Ra8 {[%clk 00:07:57]} {[%emt 00:00:39]} 35. Ra1 {[%clk 00:45:57]}
{[%emt 00:00:05]} Kf8 {[%clk 00:08:22]} {[%emt 00:00:05]} 36. Ke2 {[%clk
00:45:49]} {[%emt 00:00:38]} Ke8 {[%clk 00:08:45]} {[%emt 00:00:07]} 37. Kd3
{[%clk 00:46:08]} {[%emt 00:00:11]} Kd7 {[%clk 00:08:45]} {[%emt 00:00:30]} 38.
Kc4 {[%clk 00:46:01]} {[%emt 00:00:37]} Kc7 {[%clk 00:09:04]} {[%emt 00:00:11]}
39. Kb5 {[%clk 00:44:52]} {[%emt 00:01:39]} Rb8+ {[%clk 00:09:26]} {[%emt
00:00:09]} 40. Kc4 {[%clk 00:43:48]} {[%emt 00:01:34]} Ra8 {[%clk 00:09:43]}
{[%emt 00:00:13]} 41. Ra2 {[%clk 00:43:39]} {[%emt 00:00:40]} Rc8 {[%clk
00:07:57]} {[%emt 00:02:14]} 42. Rb2 {[%clk 00:43:12]} {[%emt 00:00:57]} Ra8
{[%clk 00:08:08]} {[%emt 00:00:19]} 43. Rb5 {[%clk 00:43:33]} {[%emt 00:00:09]}
Ra7 {[%clk 00:06:35]} {[%emt 00:02:03]} 44. Kb4 {[%clk 00:42:25]} {[%emt
00:01:38]} Ra6 {[%clk 00:06:59]} {[%emt 00:00:05]} 45. Ka4 {[%clk 00:40:26]}
{[%emt 00:02:29]} h6 {[%clk 00:06:29]} {[%emt 00:01:00]} 46. h4 {[%clk
00:39:38]} {[%emt 00:01:18]} h5 {[%clk 00:05:56]} {[%emt 00:01:04]} 47. gxh5
{[%clk 00:38:39]} {[%emt 00:01:29]} gxh5 {[%clk 00:06:17]} {[%emt 00:00:09]} 48.
Rb3 {[%clk 00:38:38]} {[%emt 00:00:27]} 1-0

[Event "Mistrovství Čech mládeže 2023 - HD16"]
[Site "Harrachov, Czech Republic"]
[Date "2023.10.22"]
[Round "2.5"]
[White "Vyšinský, Otakar"]
[Black "Síleš, Jan"]
[Result "1/2-1/2"]
[TimeControl "90m + 30s"]
[WhiteElo "1599"]
[BlackElo "1839"]

1. d4 {[%clk 01:30:54]} {[%emt 00:00:05]} Nf6 {[%clk 01:30:32]} {[%emt
00:00:28]} 2. c4 {[%clk 01:31:15]} {[%emt 00:00:09]} c5 {[%clk 01:30:54]}
{[%emt 00:00:08]} 3. d5 {[%clk 01:30:51]} {[%emt 00:00:54]} b5 {[%clk
01:31:13]} {[%emt 00:00:12]} 4. Qc2 {[%clk 01:30:55]} {[%emt 00:00:26]} e6
{[%clk 01:26:47]} {[%emt 00:04:56]} 5. e4 {[%clk 01:30:58]} {[%emt 00:00:27]}
bxc4 {[%clk 01:23:16]} {[%emt 00:04:00]} 6. Bxc4 {[%clk 01:29:09]} {[%emt
00:02:19]} Bb7 {[%clk 01:21:49]} {[%emt 00:01:57]} 7. Nc3 {[%clk 01:28:10]}
{[%emt 00:01:28]} Na6 {[%clk 01:09:05]} {[%emt 00:13:14]} 8. Qb3 {[%clk
01:12:36]} {[%emt 00:16:04]} Qb6 {[%clk 01:00:39]} {[%emt 00:08:56]} 9. Bf4
{[%clk 01:05:47]} {[%emt 00:07:19]} Qxb3 {[%clk 00:52:29]} {[%emt 00:08:40]} 10.
Bxb3 {[%clk 01:05:33]} {[%emt 00:00:44]} Nb4 {[%clk 00:52:14]} {[%emt
00:00:45]} 11. O-O-O {[%clk 01:00:33]} {[%emt 00:05:30]} c4 {[%clk 00:48:51]}
{[%emt 00:03:54]} 12. Bc2 {[%clk 00:42:34]} {[%emt 00:18:30]} exd5 {[%clk
00:45:07]} {[%emt 00:04:14]} 13. exd5 {[%clk 00:42:49]} {[%emt 00:00:15]} Nbxd5
{[%clk 00:44:17]} {[%emt 00:01:19]} 14. Nxd5 {[%clk 00:42:22]} {[%emt
00:00:56]} Bxd5 {[%clk 00:42:32]} {[%emt 00:02:15]} 15. Nf3 {[%clk 00:39:55]}
{[%emt 00:02:58]} Bc5 {[%clk 00:36:44]} {[%emt 00:06:18]} 16. Bg5 {[%clk
00:34:43]} {[%emt 00:05:42]} Be6 {[%clk 00:33:32]} {[%emt 00:03:42]} 17. Nd4
{[%clk 00:29:17]} {[%emt 00:05:57]} O-O-O {[%clk 00:29:21]} {[%emt 00:04:40]}
18. Nf5 {[%clk 00:25:24]} {[%emt 00:04:23]} h6 {[%clk 00:24:23]} {[%emt
00:05:29]} 19. Bf4 {[%clk 00:20:56]} {[%emt 00:04:58]} Nd5 {[%clk 00:20:26]}
{[%emt 00:04:27]} 20. Bd6 {[%clk 00:18:07]} {[%emt 00:03:19]} Bxd6 {[%clk
00:14:31]} {[%emt 00:06:25]} 21. Nxd6+ {[%clk 00:18:30]} {[%emt 00:00:06]} Kb8
{[%clk 00:14:45]} {[%emt 00:00:17]} 22. Nxc4 {[%clk 00:17:49]} {[%emt
00:01:11]} Rc8 {[%clk 00:08:35]} {[%emt 00:06:39]} 23. Ne3 {[%clk 00:16:23]}
{[%emt 00:01:56]} Nb4 {[%clk 00:04:24]} {[%emt 00:04:41]} 24. a3 {[%clk
00:14:56]} {[%emt 00:01:57]} Nxc2 {[%clk 00:04:50]} {[%emt 00:00:03]} 25. Nxc2
{[%clk 00:15:19]} {[%emt 00:00:07]} Bf5 {[%clk 00:04:56]} {[%emt 00:00:25]} 26.
Rd2 {[%clk 00:15:41]} {[%emt 00:00:08]} Rhe8 {[%clk 00:04:53]} {[%emt
00:00:31]} 27. Kd1 {[%clk 00:15:02]} {[%emt 00:01:11]} Bxc2+ {[%clk 00:04:40]}
{[%emt 00:00:43]} 28. Rxc2 {[%clk 00:15:19]} {[%emt 00:00:13]} Rxc2 {[%clk
00:05:06]} {[%emt 00:00:03]} 29. Kxc2 {[%clk 00:15:43]} {[%emt 00:00:06]} Re2+
{[%clk 00:05:31]} {[%emt 00:00:05]} 30. Kc3 {[%clk 00:13:50]} {[%emt 00:02:23]}
Rxf2 {[%clk 00:05:45]} {[%emt 00:00:17]} 31. g3 {[%clk 00:11:41]} {[%emt
00:02:39]} Kc7 {[%clk 00:05:29]} {[%emt 00:00:46]} 32. a4 {[%clk 00:10:20]}
{[%emt 00:01:52]} d5 {[%clk 00:03:49]} {[%emt 00:02:10]} 33. b4 {[%clk
00:08:43]} {[%emt 00:02:07]} Kd6 {[%clk 00:03:26]} {[%emt 00:00:52]} 34. Kd4
{[%clk 00:08:22]} {[%emt 00:00:52]} Ra2 {[%clk 00:03:05]} {[%emt 00:00:51]} 35.
a5 {[%clk 00:06:16]} {[%emt 00:02:36]} a6 {[%clk 00:02:44]} {[%emt 00:00:52]}
36. Kc3 {[%clk 00:05:46]} {[%emt 00:00:59]} f5 {[%clk 00:01:54]} {[%emt
00:01:19]} 37. Rf1 {[%clk 00:04:44]} {[%emt 00:01:32]} g6 {[%clk 00:02:07]}
{[%emt 00:00:18]} 38. g4 {[%clk 00:04:46]} {[%emt 00:00:29]} Ra3+ {[%clk
00:00:49]} {[%emt 00:01:48]} 39. Kb2 {[%clk 00:02:55]} {[%emt 00:02:21]} Rh3
{[%clk 00:01:17]} {[%emt 00:00:01]} 40. gxf5 {[%clk 00:02:34]} {[%emt
00:00:50]} gxf5 {[%clk 00:01:19]} {[%emt 00:00:29]} 41. Rxf5 {[%clk 00:03:01]}
{[%emt 00:00:03]} Rxh2+ {[%clk 00:01:35]} {[%emt 00:00:14]} 42. Kc3 {[%clk
00:03:25]} {[%emt 00:00:06]} Ke6 {[%clk 00:01:36]} {[%emt 00:00:29]} 43. Rf8
{[%clk 00:03:20]} {[%emt 00:00:36]} Rh4 {[%clk 00:01:12]} {[%emt 00:00:53]} 44.
Re8+ {[%clk 00:02:05]} {[%emt 00:01:46]} Kd7 {[%clk 00:01:01]} {[%emt
00:00:41]} 45. Ra8 {[%clk 00:02:17]} {[%emt 00:00:18]} Rc4+ {[%clk 00:01:15]}
{[%emt 00:00:16]} 46. Kd3 {[%clk 00:01:47]} {[%emt 00:01:00]} Rc6 {[%clk
00:00:55]} {[%emt 00:00:50]} 47. Kd4 {[%clk 00:01:55]} {[%emt 00:00:21]} Rc4+
{[%clk 00:00:34]} 1/2-1/2

[Event "Mistrovství Čech mládeže 2023 - HD16"]
[Site "Harrachov, Czech Republic"]
[Date "2023.10.22"]
[Round "2.6"]
[White "Andrle, Filip"]
[Black "Vlček, Vojtěch"]
[Result "1-0"]
[TimeControl "90m + 30s"]
[WhiteElo "1830"]
[BlackElo "1661"]

1. e4 {[%clk 01:30:56]} {[%emt 00:00:03]} c5 {[%clk 01:30:44]} {[%emt
00:00:16]} 2. Nf3 {[%clk 01:28:59]} {[%emt 00:02:27]} d6 {[%clk 01:30:50]}
{[%emt 00:00:24]} 3. d4 {[%clk 01:28:14]} {[%emt 00:01:15]} cxd4 {[%clk
01:29:22]} {[%emt 00:01:59]} 4. Nxd4 {[%clk 01:28:25]} {[%emt 00:00:19]} Nf6
{[%clk 01:29:16]} {[%emt 00:00:36]} 5. Nc3 {[%clk 01:28:37]} {[%emt 00:00:17]}
Nc6 {[%clk 01:29:15]} {[%emt 00:00:31]} 6. Bg5 {[%clk 01:27:57]} {[%emt
00:01:10]} e6 {[%clk 01:29:09]} {[%emt 00:00:36]} 7. Qd2 {[%clk 01:27:12]}
{[%emt 00:01:16]} Be7 {[%clk 01:29:08]} {[%emt 00:00:29]} 8. O-O-O {[%clk
01:24:33]} {[%emt 00:03:10]} a6 {[%clk 01:29:14]} {[%emt 00:00:25]} 9. f4
{[%clk 01:22:07]} {[%emt 00:02:55]} Nxd4 {[%clk 01:22:08]} {[%emt 00:07:37]} 10.
Qxd4 {[%clk 01:22:19]} {[%emt 00:00:18]} b5 {[%clk 01:19:37]} {[%emt 00:03:01]}
11. Be2 {[%clk 01:12:17]} {[%emt 00:10:32]} Bd7 {[%clk 01:01:01]} {[%emt
00:19:06]} 12. Bf3 {[%clk 01:04:46]} {[%emt 00:08:00]} Rb8 {[%clk 00:59:37]}
{[%emt 00:01:55]} 13. e5 {[%clk 01:00:06]} {[%emt 00:05:10]} dxe5 {[%clk
00:50:49]} {[%emt 00:09:18]} 14. fxe5 {[%clk 00:59:29]} {[%emt 00:01:07]} b4
{[%clk 00:30:27]} {[%emt 00:20:52]} 15. exf6 {[%clk 00:48:13]} {[%emt
00:11:46]} gxf6 {[%clk 00:30:33]} {[%emt 00:00:23]} 16. Ne4 {[%clk 00:48:01]}
{[%emt 00:00:43]} e5 {[%clk 00:26:19]} {[%emt 00:04:45]} 17. Nd6+ {[%clk
00:43:09]} {[%emt 00:05:22]} Bxd6 {[%clk 00:20:30]} {[%emt 00:06:19]} 18. Qxd6
{[%clk 00:43:18]} {[%emt 00:00:21]} Rb6 {[%clk 00:20:42]} {[%emt 00:00:18]} 19.
Bxf6 {[%clk 00:35:52]} {[%emt 00:07:55]} Rxd6 {[%clk 00:20:50]} {[%emt
00:00:22]} 20. Rxd6 {[%clk 00:35:55]} {[%emt 00:00:26]} Qa5 {[%clk 00:19:16]}
{[%emt 00:02:04]} 21. Rhd1 {[%clk 00:32:42]} {[%emt 00:03:43]} O-O {[%clk
00:11:20]} {[%emt 00:08:27]} 22. Rxd7 {[%clk 00:28:17]} {[%emt 00:04:56]} Qxa2
{[%clk 00:11:32]} {[%emt 00:00:17]} 23. Bxe5 {[%clk 00:15:20]} {[%emt
00:13:26]} Qe6 {[%clk 00:05:04]} {[%emt 00:06:56]} 24. R7d5 {[%clk 00:11:27]}
{[%emt 00:04:25]} h6 {[%clk 00:02:16]} {[%emt 00:03:18]} 25. R1d4 {[%clk
00:09:21]} {[%emt 00:02:35]} b3 {[%clk 00:00:47]} {[%emt 00:02:00]} 26. Rg4+
{[%clk 00:09:30]} {[%emt 00:00:21]} Kh7 {[%clk 00:00:34]} {[%emt 00:00:44]} 27.
Rg7+ {[%clk 00:09:26]} {[%emt 00:00:33]} Kh8 {[%clk 00:00:54]} {[%emt
00:00:11]} 28. Rxf7+ {[%clk 00:09:24]} 1-0

[Event "Mistrovství Čech mládeže 2023 - HD16"]
[Site "Harrachov, Czech Republic"]
[Date "2023.10.22"]
[Round "2.7"]
[White "Dvořák, Jan"]
[Black "Dobsa, Emma"]
[Result "1/2-1/2"]
[TimeControl "90m + 30s"]
[WhiteElo "1789"]
[BlackElo "1616"]

1. e4 {[%clk 01:30:56]} {[%emt 00:00:03]} c6 {[%clk 01:30:52]} {[%emt
00:00:09]} 2. d4 {[%clk 01:31:09]} {[%emt 00:00:17]} d5 {[%clk 01:31:01]}
{[%emt 00:00:21]} 3. Nc3 {[%clk 01:31:10]} {[%emt 00:00:28]} dxe4 {[%clk
01:31:29]} {[%emt 00:00:02]} 4. Nxe4 {[%clk 01:31:26]} {[%emt 00:00:14]} Bf5
{[%clk 01:31:54]} {[%emt 00:00:05]} 5. Ng3 {[%clk 01:31:32]} {[%emt 00:00:23]}
Bg6 {[%clk 01:32:19]} {[%emt 00:00:05]} 6. Nf3 {[%clk 01:31:12]} {[%emt
00:00:50]} Nd7 {[%clk 01:32:32]} {[%emt 00:00:17]} 7. Bd3 {[%clk 01:28:54]}
{[%emt 00:02:47]} Bxd3 {[%clk 01:32:51]} {[%emt 00:00:12]} 8. Qxd3 {[%clk
01:29:17]} {[%emt 00:00:07]} e6 {[%clk 01:31:41]} {[%emt 00:01:40]} 9. Bf4
{[%clk 01:26:27]} {[%emt 00:03:19]} Ngf6 {[%clk 01:31:35]} {[%emt 00:00:36]} 10.
O-O {[%clk 01:25:44]} {[%emt 00:01:13]} Be7 {[%clk 01:31:24]} {[%emt 00:00:42]}
11. c4 {[%clk 01:24:21]} {[%emt 00:01:53]} O-O {[%clk 01:30:35]} {[%emt
00:01:18]} 12. Rad1 {[%clk 01:23:38]} {[%emt 00:01:13]} Qb6 {[%clk 01:30:12]}
{[%emt 00:00:53]} 13. Rd2 {[%clk 01:21:39]} {[%emt 00:02:29]} Rad8 {[%clk
01:29:31]} {[%emt 00:01:11]} 14. a3 {[%clk 01:17:59]} {[%emt 00:04:09]} a5
{[%clk 01:25:19]} {[%emt 00:04:42]} 15. Qc2 {[%clk 01:13:42]} {[%emt 00:04:47]}
Rfe8 {[%clk 01:14:44]} {[%emt 00:11:05]} 16. Rd3 {[%clk 01:12:34]} {[%emt
00:01:38]} Nf8 {[%clk 01:08:27]} {[%emt 00:06:46]} 17. Rfd1 {[%clk 01:00:36]}
{[%emt 00:12:26]} Ng6 {[%clk 01:05:46]} {[%emt 00:03:13]} 18. Bd2 {[%clk
00:49:15]} {[%emt 00:11:51]} c5 {[%clk 00:59:23]} {[%emt 00:06:53]} 19. Qa4
{[%clk 00:41:12]} {[%emt 00:08:32]} Ra8 {[%clk 00:51:56]} {[%emt 00:07:57]} 20.
d5 {[%clk 00:33:54]} {[%emt 00:07:49]} exd5 {[%clk 00:49:35]} {[%emt 00:02:51]}
21. cxd5 {[%clk 00:34:13]} {[%emt 00:00:11]} Qa6 {[%clk 00:47:51]} {[%emt
00:02:15]} 22. Be3 {[%clk 00:28:21]} {[%emt 00:06:21]} b5 {[%clk 00:45:25]}
{[%emt 00:02:56]} 23. Qc2 {[%clk 00:28:31]} {[%emt 00:00:20]} c4 {[%clk
00:45:39]} {[%emt 00:00:16]} 24. R3d2 {[%clk 00:28:31]} {[%emt 00:00:29]} Rad8
{[%clk 00:45:44]} {[%emt 00:00:26]} 25. Nf5 {[%clk 00:26:22]} {[%emt 00:02:39]}
Bd6 {[%clk 00:44:59]} {[%emt 00:01:15]} 26. Nxd6 {[%clk 00:26:04]} {[%emt
00:00:48]} Qxd6 {[%clk 00:45:15]} {[%emt 00:00:13]} 27. Rd4 {[%clk 00:19:36]}
{[%emt 00:06:59]} Ne5 {[%clk 00:34:55]} {[%emt 00:10:51]} 28. Nxe5 {[%clk
00:17:54]} {[%emt 00:02:12]} Qxe5 {[%clk 00:35:00]} {[%emt 00:00:25]} 29. Qd2
{[%clk 00:17:56]} {[%emt 00:00:27]} Qc7 {[%clk 00:30:00]} {[%emt 00:05:31]} 30.
d6 {[%clk 00:14:37]} {[%emt 00:03:49]} Qc6 {[%clk 00:27:46]} {[%emt 00:02:44]}
31. Qxa5 {[%clk 00:14:09]} {[%emt 00:00:58]} Rd7 {[%clk 00:28:00]} {[%emt
00:00:16]} 32. Qb4 {[%clk 00:12:41]} {[%emt 00:01:58]} h6 {[%clk 00:26:27]}
{[%emt 00:02:03]} 33. a4 {[%clk 00:11:42]} {[%emt 00:01:29]} Rb8 {[%clk
00:23:04]} {[%emt 00:03:52]} 34. a5 {[%clk 00:10:25]} {[%emt 00:01:47]} Ra8
{[%clk 00:23:05]} {[%emt 00:00:29]} 35. f3 {[%clk 00:08:44]} {[%emt 00:02:11]}
Rda7 {[%clk 00:20:27]} {[%emt 00:03:08]} 36. Ra1 {[%clk 00:06:43]} {[%emt
00:02:31]} Nd5 {[%clk 00:19:30]} {[%emt 00:01:27]} 37. Rxd5 {[%clk 00:04:24]}
{[%emt 00:02:50]} Qxd5 {[%clk 00:19:51]} {[%emt 00:00:09]} 38. Bxa7 {[%clk
00:04:48]} {[%emt 00:00:06]} Rxa7 {[%clk 00:20:18]} {[%emt 00:00:03]} 39. Re1
{[%clk 00:04:14]} {[%emt 00:01:02]} Rd7 {[%clk 00:16:36]} {[%emt 00:04:15]} 40.
a6 {[%clk 00:03:33]} {[%emt 00:01:11]} Rxd6 {[%clk 00:16:19]} {[%emt 00:00:46]}
41. a7 {[%clk 00:03:14]} {[%emt 00:00:50]} Ra6 {[%clk 00:15:42]} {[%emt
00:01:07]} 42. Re8+ {[%clk 00:00:52]} {[%emt 00:02:52]} Kh7 {[%emt 00:01:02]}
43. a8=Q Rxa8 {[%clk 00:16:17]} {[%emt 00:00:08]} 44. Rxa8 {[%clk 00:00:44]}
{[%emt 00:00:22]} Qxa8 {[%clk 00:16:44]} {[%emt 00:00:03]} 45. Qxb5 {[%clk
00:01:02]} {[%emt 00:00:12]} Qc8 {[%clk 00:15:50]} {[%emt 00:01:24]} 46. Qd5
{[%clk 00:01:00]} {[%emt 00:00:31]} Qc7 {[%clk 00:15:51]} {[%emt 00:00:30]} 47.
Qe4+ {[%clk 00:00:52]} {[%emt 00:00:38]} g6 {[%clk 00:15:42]} {[%emt 00:00:39]}
48. Qd4 {[%clk 00:00:53]} {[%emt 00:00:29]} h5 {[%clk 00:14:31]} {[%emt
00:01:41]} 49. Kf2 {[%clk 00:00:53]} {[%emt 00:00:30]} Kg8 {[%clk 00:14:13]}
{[%emt 00:00:48]} 1/2-1/2

[Event "Mistrovství Čech mládeže 2023 - HD16"]
[Site "Harrachov, Czech Republic"]
[Date "2023.10.22"]
[Round "2.8"]
[White "Dudková, Josefína"]
[Black "Kaplanová, Dominika"]
[Result "0-1"]
[TimeControl "90m + 30s"]
[WhiteElo "1587"]
[BlackElo "1782"]

1. d4 {[%clk 01:30:56]} {[%emt 00:00:03]} Nf6 {[%clk 01:30:30]} {[%emt
00:00:30]} 2. Nf3 {[%clk 01:31:15]} {[%emt 00:00:11]} d5 {[%clk 01:29:59]}
{[%emt 00:01:01]} 3. e3 {[%clk 01:31:24]} {[%emt 00:00:21]} c5 {[%clk
01:29:04]} {[%emt 00:01:25]} 4. b3 {[%clk 01:31:31]} {[%emt 00:00:24]} cxd4
{[%clk 01:27:44]} {[%emt 00:01:49]} 5. exd4 {[%clk 01:26:09]} {[%emt 00:05:52]}
Nc6 {[%clk 01:25:58]} {[%emt 00:02:16]} 6. Bd3 {[%clk 01:23:27]} {[%emt
00:03:13]} Bg4 {[%clk 01:24:12]} {[%emt 00:02:15]} 7. Bb2 {[%clk 01:21:59]}
{[%emt 00:01:58]} Qa5+ {[%clk 01:22:07]} {[%emt 00:02:35]} 8. Bc3 {[%clk
01:15:34]} {[%emt 00:06:56]} Qc7 {[%clk 01:19:41]} {[%emt 00:02:56]} 9. Nbd2
{[%clk 01:15:27]} {[%emt 00:00:37]} e6 {[%clk 01:18:56]} {[%emt 00:01:14]} 10.
a3 {[%clk 01:11:50]} {[%emt 00:04:08]} Bd6 {[%clk 01:16:47]} {[%emt 00:02:38]}
11. h3 {[%clk 01:10:04]} {[%emt 00:02:17]} Bh5 {[%clk 01:15:21]} {[%emt
00:01:55]} 12. O-O {[%clk 01:09:39]} {[%emt 00:00:55]} Rc8 {[%clk 01:12:14]}
{[%emt 00:03:36]} 13. Bb2 {[%clk 01:08:29]} {[%emt 00:01:41]} O-O {[%clk
01:08:44]} {[%emt 00:04:00]} 14. Qe1 {[%clk 01:07:52]} {[%emt 00:01:08]} Bf4
{[%clk 01:02:04]} {[%emt 00:07:10]} 15. Ne5 {[%clk 01:05:11]} {[%emt 00:03:11]}
Nxe5 {[%clk 00:58:29]} {[%emt 00:04:05]} 16. dxe5 {[%clk 01:05:19]} {[%emt
00:00:23]} Nd7 {[%clk 00:57:43]} {[%emt 00:01:15]} 17. g4 {[%clk 00:46:13]}
{[%emt 00:19:35]} Bg6 {[%clk 00:49:39]} {[%emt 00:08:34]} 18. Bxg6 {[%clk
00:41:54]} {[%emt 00:04:49]} hxg6 {[%clk 00:46:52]} {[%emt 00:03:18]} 19. c4
{[%clk 00:39:40]} {[%emt 00:02:44]} Bxe5 {[%clk 00:36:27]} {[%emt 00:10:55]} 20.
Bxe5 {[%clk 00:37:52]} {[%emt 00:02:18]} Qxe5 {[%clk 00:36:41]} {[%emt
00:00:16]} 21. Qxe5 {[%clk 00:35:42]} {[%emt 00:02:40]} Nxe5 {[%clk 00:37:08]}
{[%emt 00:00:03]} 22. cxd5 {[%clk 00:35:12]} {[%emt 00:01:00]} exd5 {[%clk
00:37:19]} {[%emt 00:00:19]} 23. Rfd1 {[%clk 00:29:57]} {[%emt 00:05:44]} Rc3
{[%clk 00:33:29]} {[%emt 00:04:20]} 24. Nf1 {[%clk 00:29:18]} {[%emt 00:01:08]}
d4 {[%clk 00:28:04]} {[%emt 00:05:55]} 25. Kg2 {[%clk 00:28:05]} {[%emt
00:01:44]} Nd3 {[%clk 00:25:36]} {[%emt 00:02:58]} 26. Ng3 {[%clk 00:25:28]}
{[%emt 00:03:06]} Rxb3 {[%clk 00:24:12]} {[%emt 00:01:54]} 27. Rd2 {[%clk
00:22:27]} {[%emt 00:03:31]} Nf4+ {[%clk 00:23:21]} {[%emt 00:01:21]} 28. Kh2
{[%clk 00:22:32]} {[%emt 00:00:24]} d3 {[%clk 00:21:55]} {[%emt 00:01:58]} 29.
Ne4 {[%clk 00:22:03]} {[%emt 00:00:59]} Re8 {[%clk 00:19:32]} {[%emt 00:02:51]}
30. Re1 {[%clk 00:20:09]} {[%emt 00:02:26]} Kf8 {[%clk 00:17:16]} {[%emt
00:02:46]} 31. Re3 {[%clk 00:18:48]} {[%emt 00:01:51]} Rxa3 {[%clk 00:15:39]}
{[%emt 00:02:08]} 32. Nd6 {[%clk 00:18:24]} {[%emt 00:00:53]} Rxe3 {[%clk
00:15:18]} {[%emt 00:00:51]} 33. fxe3 {[%clk 00:18:53]} {[%emt 00:00:02]} Nd5
{[%clk 00:15:13]} {[%emt 00:00:35]} 34. e4 {[%clk 00:18:10]} {[%emt 00:01:13]}
Nb4 {[%clk 00:13:38]} {[%emt 00:02:03]} 0-1